fUSD/lending_fUSD_20240424
["ID","MTS","AMOUNT","RATE_DAILY","PERIOD"]
[323435877,1713985137448,-783.85665035,0.0004,100]
[323435878,1713985137473,-1059.0,0.0004,120]
[323435879,1713985137499,-2000.0,0.0004,30]
[323435880,1713985137523,-1000.0,0.0004,30]
[323435881,1713985137546,-227.52683561,0.0004,30]
[323435882,1713985137569,-18984.13032849,0.0004,120]
[323435883,1713985137594,-200.0,0.0004,120]
[323435884,1713985137620,-379063.55711523,0.0004,30]
[323435885,1713985137643,-600.0,0.0004,60]
[323435886,1713985137667,-9666.85877316,0.0004,30]
[323435887,1713985137691,-527.09043926,0.0004,90]
[323435888,1713985137715,-17265.74,0.0004,30]
[323435889,1713985137739,-50043.82,0.0004,30]
[323435890,1713985137762,-164.0,0.0004,30]
[323435891,1713985137787,-112370.6484066,0.0004,30]
[323435892,1713985137811,-4716.81608,0.00040088,30]
[323435893,1713985137835,-385.59805503,0.00040258,40]
[323435894,1713985137859,-1825.09430479,0.00040258,35]
[323435895,1713985137882,-158.80915437,0.00040258,40]
[323435896,1713985137906,-1778.37785732,0.00040258,40]
[323435897,1713985137929,-1748.23716581,0.00040258,40]
[323435898,1713985137952,-424.19909705,0.00040258,40]
[323435899,1713985137978,-4716.81608,0.00040288,30]
[323435900,1713985138002,-1000.0,0.000403,30]
[323435901,1713985138025,-1000.0,0.000403,30]
[323435902,1713985138049,-1000.0,0.000403,30]
[323435903,1713985138072,-1000.0,0.000403,30]
[323435904,1713985138096,-896.72,0.000403,30]
[323435905,1713985138121,-6262.3,0.00040327,79]
[323435906,1713985138145,-4716.81608,0.00040488,30]
[323435907,1713985138168,-30419.16262238,0.000405,30]
[323435908,1713985138191,-58000.000001,0.000405,66]
[323435909,1713985138215,-44128.44124632,0.000406,120]
[323435910,1713985138240,-4716.81608,0.00040688,30]
[323435911,1713985138262,-719.83,0.0004077,120]
[323435912,1713985138286,-500000.0,0.000408,120]
[323435913,1713985138309,-1000.0,0.000408,30]
[323435914,1713985138333,-1000.0,0.000408,30]
[323435915,1713985138357,-1000.0,0.000408,30]
[323435916,1713985138381,-1000.0,0.000408,30]
[323435917,1713985138405,-1000.0,0.000408,30]
[323435918,1713985138430,-1000.0,0.000408,30]
[323435919,1713985138454,-1000.0,0.000408,30]
[323435920,1713985138482,-1000.0,0.000408,30]
[323435921,1713985138504,-1000.0,0.000408,30]
[323435922,1713985138527,-1000.0,0.000408,30]
[323435923,1713985138550,-1000.0,0.000408,30]
[323435924,1713985138572,-1000.0,0.000408,30]
[323435925,1713985138594,-1000.0,0.000408,30]
[323435926,1713985138616,-337.35,0.000408,30]
[323435927,1713985138638,-15000.0,0.000408,30]
[323435928,1713985138661,-606.85192504,0.00040852,120]
[323435929,1713985138684,-2611.67977807,0.00040879,50]
[323435930,1713985138708,-164161.43321974,0.000409,30]
[323435931,1713985138734,-795.47192498,0.00040972,120]
[323435932,1713985138757,-695.23337855,0.00040993,120]
[323435933,1713985138783,-100000.0,0.00041,31]
[323435934,1713985138808,-1232.32333468,0.00041,30]
[323435935,1713985138832,-448.47456867,0.00041,120]
[323435936,1713985138856,-950.0,0.00041,60]
[323435937,1713985138879,-1010.44799882,0.00041,120]
[323435938,1713985138903,-15000.0,0.00041,30]
[323435939,1713985138928,-639.18084881,0.00041,120]
[323435940,1713985138952,-5000.0,0.00041,120]
[323435941,1713985138977,-5000.0,0.00041,120]
[323435942,1713985139002,-89586.61967795,0.00041,30]
[323435943,1713985150100,-306111.88766731,0.000329,30]
[323435944,1713985150124,-13087.5036108,0.000329,30]
[323435945,1713985150147,-555.40991401,0.00033,120]
[323435946,1713985150191,-11661.25788357,0.000399,48]
[323435947,1713985150488,-910413.38032205,0.00041,30]
[323435948,1713985150513,-93070.3986325,0.00041,30]
[323435949,1713985150537,-50051.03,0.00041,30]
[323435950,1713985150560,-6310.0,0.00041,120]
[323435951,1713985150583,-1000.0,0.00041095,120]
[323435952,1713985150605,-2000.0,0.00041095,120]
[323435953,1713985150627,-2000.0,0.00041095,120]
[323435954,1713985150649,-2000.0,0.00041095,120]
[323435955,1713985150671,-1738.03916331,0.00041095,120]
[323435956,1713985150694,-514.40824154,0.00041095,120]
[323435957,1713985150716,-500.0,0.00041095,120]
[323435958,1713985150739,-500.0,0.00041095,120]
[323435959,1713985150761,-302.80300172,0.00041095,120]
[323435960,1713985150785,-462.08205817,0.00041095,30]
[323435961,1713985150808,-273.61459162,0.00041096,30]
[323435962,1713985150830,-153.08343226,0.00041096,30]
[323435963,1713985150852,-192.78833634,0.00041096,30]
[323435964,1713985150875,-204.15087646,0.00041096,30]
[323435965,1713985150897,-215.28704596,0.00041096,30]
[323435966,1713985150921,-545.62855677,0.00041096,120]
[323435967,1713985150945,-315.36394618,0.00041096,30]
[323435968,1713985150969,-156.89931106,0.00041096,30]
[323435969,1713985150992,-154.40763192,0.00041096,30]
[323435970,1713985151015,-157.00543684,0.00041096,30]
[323435971,1713985151037,-153.90223787,0.00041096,30]
[323435972,1713985151059,-150.77360343,0.000411,120]
[323435973,1713985151081,-162.99292205,0.000411,60]
[323435974,1713985151103,-700.0,0.000414,120]
[323435975,1713985151126,-250.0,0.000415,30]
[323435976,1713985151149,-487.22421419,0.00041534,120]
[323435977,1713985151172,-60464.88596114,0.000416,120]
[323435978,1713985151196,-100000.0,0.00042,32]
[323435979,1713985151220,-21200.0,0.00042,30]
[323435980,1713985151245,-950.0,0.00042,70]
[323435981,1713985151268,-2000.0,0.00042,30]
[323435982,1713985151290,-250.0,0.00042,30]
[323435983,1713985151312,-971.75691565,0.00042,120]
[323435984,1713985151334,-407612.03448528,0.00042,60]
[323436279,1713985269141,423.84,8.219e-05,2]
[323436281,1713985306280,950.42499999,8.219e-05,2]
[323436303,1713985747742,151.0,0.00020469,120]
[323436304,1713985782632,424.38,8.219e-05,2]
[323436321,1713985832144,-565.47204423,8.573e-05,2]
[323436323,1713985832154,-194.42275138,8.574e-05,2]
[323436324,1713985832163,-203.09498039,8.574e-05,2]
[323436326,1713985832175,-419.67248778,8.574e-05,2]
[323436330,1713985832478,-824.81260088,8.572e-05,2]
[323436331,1713985832491,-1530.98280808,8.572e-05,2]
[323436332,1713985832500,-985.90939184,8.574e-05,2]
[323436333,1713985832509,-11.80959701,8.574e-05,2]
[323436334,1713985832521,-6421.978,8.574e-05,2]
[323436335,1713985832532,-16336.72001567,8.574e-05,2]
[323436336,1713985832541,-363.81924561,8.575e-05,2]
[323436338,1713985832550,-3000.53700494,8.575e-05,2]
[323436340,1713985832559,-1294.20534572,8.575e-05,2]
[323436342,1713985832568,-4323.32970433,8.576e-05,2]
[323436343,1713985832577,-200.33057979,8.577e-05,2]
[323436345,1713985832587,-4131.92114379,8.577e-05,2]
[323436347,1713985832597,-2360.31228709,8.577e-05,2]
[323436350,1713985832607,-967.75282594,8.578e-05,2]
[323436352,1713985832618,-161.52,8.579e-05,2]
[323436354,1713985832627,-3413.75428365,8.606e-05,2]
[323436356,1713985832637,-1995.07350816,8.606e-05,2]
[323436358,1713985832646,-1612.0,8.611e-05,2]
[323436360,1713985832659,-250.0,8.627e-05,2]
[323436362,1713985832668,-2718.35,8.666e-05,2]
[323436364,1713985832678,-155.0,8.975e-05,2]
[323436366,1713985832689,-408.40214741,8.975e-05,2]
[323436368,1713985832698,-167.34808462,8.975e-05,2]
[323436370,1713985832710,-535.93386891,8.975e-05,2]
[323436372,1713985832720,-3423.7794365,8.979e-05,2]
[323436374,1713985832729,-14805.4,8.98e-05,2]
[323436375,1713985832738,-155.0,8.987e-05,2]
[323436376,1713985832748,-2179.97190532,8.993e-05,2]
[323436377,1713985832757,-163.97,8.994e-05,2]
[323436378,1713985832767,-4332.58774671,8.994e-05,2]
[323436379,1713985832777,-287.49,9e-05,2]
[323436380,1713985832787,-163.97,9.046e-05,2]
[323436381,1713985832796,-163.97,9.098e-05,2]
[323436382,1713985832806,-163.97,9.15e-05,2]
[323436383,1713985832815,-163.97,9.202e-05,2]
[323436384,1713985832825,-163.97,9.254e-05,2]
[323436385,1713985832835,-163.97,9.306e-05,2]
[323436386,1713985832845,-163.97,9.359e-05,2]
[323436387,1713985832855,-163.97,9.411e-05,2]
[323436388,1713985832864,-163.97,9.463e-05,2]
[323436389,1713985832874,-324.07,9.541e-05,2]
[323436390,1713985832883,-324.07,9.543e-05,2]
[323436391,1713985832893,-324.07,9.546e-05,2]
[323436392,1713985832903,-324.07,9.548e-05,2]
[323436393,1713985832912,-324.07,9.551e-05,2]
[323436394,1713985832921,-324.07,9.553e-05,2]
[323436395,1713985832931,-324.07,9.556e-05,2]
[323436396,1713985832941,-324.07,9.559e-05,2]
[323436397,1713985832950,-324.07,9.561e-05,2]
[323436398,1713985832960,-324.07,9.564e-05,2]
[323436399,1713985832969,-324.07,9.566e-05,2]
[323436400,1713985832978,-324.07,9.569e-05,2]
[323436401,1713985832989,-1609.0,9.57e-05,2]
[323436402,1713985832998,-209.9931,9.57e-05,2]
[323436403,1713985833008,-324.07,9.571e-05,2]
[323436404,1713985833018,-324.07,9.574e-05,2]
[323436405,1713985833027,-324.07,9.576e-05,2]
[323436406,1713985833036,-324.07,9.579e-05,2]
[323436407,1713985833046,-324.07,9.581e-05,2]
[323436408,1713985833056,-324.07,9.584e-05,2]
[323436409,1713985833065,-324.07,9.586e-05,2]
[323436410,1713985833075,-324.07,9.589e-05,2]
[323436411,1713985833084,-1000.0,9.618e-05,2]
[323436412,1713985833094,-739.33,9.67e-05,2]
[323436413,1713985833103,-6670.68,9.67e-05,2]
[323436414,1713985833112,-282.33,9.67e-05,2]
[323436415,1713985833122,-499.99,9.67e-05,2]
[323436416,1713985833131,-1557.79862439,9.679e-05,2]
[323436417,1713985833141,-899.45,0.0001,2]
[323436418,1713985833152,-287.49,0.00010125,2]
[323436419,1713985833161,-2215.83251815,0.00010139,2]
[323436420,1713985833171,-424.38,0.00010401,2]
[323436421,1713985833181,-841.4369,0.00010713,2]
[323436422,1713985833191,-1000.0,0.00010713,2]
[323436423,1713985833200,-195.3861197,0.00010714,2]
[323436424,1713985833211,-161.52,0.00010723,2]
[323436425,1713985833220,-300.0,0.000108,3]
[323436426,1713985833230,-31958.7436036,0.00010813,2]
[323436427,1713985833248,-1283.556761,0.00010813,2]
[323436428,1713985833260,-1494.1465215,0.00010813,2]
[323436429,1713985833272,-501.46,0.00010813,2]
[323436430,1713985833284,-1229.285,0.00010813,2]
[323436431,1713985833322,-493.64174045,0.00010813,2]
[323436432,1713985833334,-387.245892,0.00010813,2]
[323436433,1713985833347,-376.224,0.00010813,2]
[323436434,1713985833380,-381306.3747261,0.00010813,2]
[323436435,1713985833391,-21584.95682334,0.00010813,2]
[323436436,1713985833404,-79905.95750544,0.00010813,2]
[323436437,1713985833413,-5086.35164062,0.00010814,2]
[323436451,1713985838179,-9890.78103409,0.00010814,2]
[323436452,1713985838197,-5795.41613637,0.00010814,2]
[323436453,1713985838208,-1977.50358643,0.00010815,2]
[323436454,1713985838217,-156.33284154,0.00010815,2]
[323436455,1713985838226,-219.66306455,0.00010815,2]
[323436456,1713985838236,-206.75433877,0.00010815,2]
[323436457,1713985838246,-325.67432968,0.00010815,2]
[323436458,1713985838255,-2221.84905568,0.00010818,2]
[323436459,1713985838265,-1000.0,0.0001082,2]
[323436460,1713985838275,-177.99668941,0.000109,2]
[323436461,1713985838284,-700.0,0.000109,3]
[323436462,1713985838293,-1909.6648,0.00010918,2]
[323436463,1713985838303,-34732.0818,0.00010918,2]
[323436464,1713985838312,-10610.56385041,0.00010918,2]
[323436465,1713985838350,-56578.68724959,0.00010918,2]
[323436466,1713985838360,-3425.6867,0.00010918,2]
[323436467,1713985838370,-2221.84905568,0.00010955,2]
[323436468,1713985838380,-500.0,0.00010958,2]
[323436469,1713985838389,-500.0,0.00010958,2]
[323436470,1713985838398,-500.0,0.00010958,2]
[323436471,1713985838407,-598.07232064,0.00010958,2]
[323436472,1713985838416,-500.0,0.00010958,2]
[323436473,1713985838426,-500.0,0.00010958,2]
[323436474,1713985838435,-500.0,0.00010958,2]
[323436475,1713985838445,-500.0,0.00010958,2]
[323436476,1713985838455,-500.0,0.00010958,2]
[323436477,1713985838465,-172.53273228,0.00010958,2]
[323436478,1713985838474,-500.0,0.00010958,2]
[323436479,1713985838483,-500.0,0.00010958,2]
[323436480,1713985838493,-500.0,0.00010958,2]
[323436481,1713985838503,-500.0,0.00010958,2]
[323436482,1713985838512,-500.0,0.00010958,2]
[323436483,1713985838522,-500.0,0.00010958,2]
[323436485,1713985838532,-500.0,0.00010958,2]
[323436487,1713985838541,-419.18708098,0.00010958,2]
[323436488,1713985838550,-500.0,0.00010958,2]
[323436489,1713985838559,-500.0,0.00010958,2]
[323436490,1713985838569,-500.0,0.00010958,2]
[323436491,1713985838578,-500.0,0.00010958,2]
[323436492,1713985838587,-500.0,0.00010958,2]
[323436493,1713985838597,-856.55,0.00010958,2]
[323436494,1713985838610,-500.0,0.00010958,2]
[323436495,1713985838620,-255.46236856,0.00010958,2]
[323436496,1713985838629,-336.52947977,0.00010958,2]
[323436497,1713985838638,-500.0,0.00010958,2]
[323436498,1713985838650,-500.0,0.00010958,2]
[323436499,1713985838659,-500.0,0.00010958,2]
[323436500,1713985838669,-500.0,0.00010958,2]
[323436501,1713985838679,-500.0,0.00010958,2]
[323436502,1713985838689,-500.0,0.00010958,2]
[323436503,1713985838698,-500.0,0.00010958,2]
[323436504,1713985838709,-500.0,0.00010958,2]
[323436505,1713985838719,-500.0,0.00010958,2]
[323436506,1713985838728,-500.0,0.00010958,2]
[323436507,1713985838738,-500.0,0.00010958,2]
[323436508,1713985838748,-500.0,0.00010958,2]
[323436509,1713985838757,-500.0,0.00010958,2]
[323436510,1713985838766,-500.0,0.00010958,2]
[323436511,1713985838777,-500.0,0.00010958,2]
[323436512,1713985838786,-765.09,0.00010958,2]
[323436513,1713985838796,-500.0,0.00010958,2]
[323436514,1713985838805,-500.0,0.00010958,2]
[323436515,1713985838815,-500.0,0.00010958,2]
[323436516,1713985838824,-532.35,0.00010958,2]
[323436517,1713985838834,-510.44,0.00010958,2]
[323436518,1713985838844,-150.0,0.00010958,2]
[323436519,1713985838853,-500.0,0.00010958,2]
[323436520,1713985838862,-265.51709172,0.00010958,2]
[323436521,1713985838872,-500.0,0.00010958,2]
[323436522,1713985838881,-500.0,0.00010958,2]
[323436523,1713985838891,-500.0,0.00010958,2]
[323436524,1713985838901,-500.0,0.00010958,2]
[323436525,1713985838911,-527.23328809,0.00010958,2]
[323436526,1713985838921,-526.61567953,0.00010958,2]
[323436527,1713985838930,-500.0,0.00010958,2]
[323436528,1713985838939,-500.0,0.00010958,2]
[323436529,1713985838949,-500.0,0.00010958,2]
[323436530,1713985838960,-508.50112775,0.00010958,2]
[323436531,1713985838969,-500.0,0.00010958,2]
[323436532,1713985838979,-500.0,0.00010958,2]
[323436533,1713985838988,-507.72553441,0.00010958,2]
[323436534,1713985838998,-500.0,0.00010958,2]
[323436535,1713985839007,-500.0,0.00010958,2]
[323436536,1713985839017,-500.0,0.00010958,2]
[323436537,1713985839026,-500.0,0.00010958,2]
[323436538,1713985839035,-500.0,0.00010958,2]
[323436539,1713985839044,-500.0,0.00010958,2]
[323436540,1713985839054,-500.0,0.00010958,2]
[323436541,1713985839063,-501.25155652,0.00010958,2]
[323436542,1713985839073,-459.83214431,0.00010958,2]
[323436543,1713985839082,-500.71006195,0.00010958,2]
[323436544,1713985839091,-500.0,0.00010958,2]
[323436545,1713985839101,-500.0,0.00010958,2]
[323436546,1713985839110,-500.0,0.00010958,2]
[323436547,1713985839120,-500.0,0.00010958,2]
[323436548,1713985839129,-500.0,0.00010958,2]
[323436549,1713985839139,-500.0,0.00010958,2]
[323436550,1713985839148,-508.289063,0.00010958,2]
[323436551,1713985839157,-500.0,0.00010958,2]
[323436552,1713985839166,-500.0,0.00010958,2]
[323436553,1713985839176,-580.22,0.00010958,2]
[323436554,1713985839186,-507.69948382,0.00010958,2]
[323436555,1713985839195,-500.0,0.00010958,2]
[323436556,1713985839206,-500.0,0.00010958,2]
[323436557,1713985839215,-380.59246284,0.00010958,2]
[323436558,1713985839230,-395.75753716,0.00010958,2]
[323436559,1713985839239,-500.0,0.00010958,2]
[323436560,1713985839248,-500.0,0.00010958,2]
[323436561,1713985839257,-500.0,0.00010958,2]
[323436562,1713985839266,-500.0,0.00010958,2]
[323436563,1713985839275,-500.0,0.00010958,2]
[323436564,1713985839285,-500.0,0.00010958,2]
[323436565,1713985839294,-500.0,0.00010958,2]
[323436566,1713985839303,-500.0,0.00010958,2]
[323436567,1713985839312,-500.0,0.00010958,2]
[323436568,1713985839321,-500.0,0.00010958,2]
[323436569,1713985839331,-500.0,0.00010958,2]
[323436570,1713985839341,-500.0,0.00010958,2]
[323436571,1713985839350,-500.0,0.00010958,2]
[323436572,1713985839359,-500.0,0.00010958,2]
[323436573,1713985839368,-500.0,0.00010958,2]
[323436574,1713985839377,-500.0,0.00010958,2]
[323436575,1713985839387,-500.0,0.00010958,2]
[323436576,1713985839397,-500.0,0.00010958,2]
[323436577,1713985839408,-503.51906711,0.00010958,2]
[323436578,1713985839418,-500.0,0.00010958,2]
[323436579,1713985839427,-500.0,0.00010958,2]
[323436580,1713985839436,-501.42621343,0.00010958,2]
[323436581,1713985839446,-500.0,0.00010958,2]
[323436582,1713985839458,-500.0,0.00010958,2]
[323436583,1713985839467,-500.0,0.00010958,2]
[323436584,1713985839477,-500.0,0.00010958,2]
[323436585,1713985839487,-408.64273726,0.00010958,2]
[323436586,1713985839498,-500.0,0.00010958,2]
[323436587,1713985839508,-500.0,0.00010958,2]
[323436588,1713985839518,-500.0,0.00010958,2]
[323436589,1713985839528,-500.0,0.00010958,2]
[323436590,1713985839538,-500.0,0.00010958,2]
[323436591,1713985839547,-500.0,0.00010958,2]
[323436592,1713985839557,-500.0,0.00010958,2]
[323436593,1713985839566,-500.0,0.00010958,2]
[323436594,1713985839576,-500.0,0.00010958,2]
[323436595,1713985839585,-500.0,0.00010958,2]
[323436596,1713985839596,-500.0,0.00010958,2]
[323436597,1713985839608,-500.0,0.00010958,2]
[323436598,1713985839618,-593.4,0.00010958,2]
[323436599,1713985839627,-500.0,0.00010958,2]
[323436600,1713985839637,-500.0,0.00010958,2]
[323436601,1713985839647,-500.0,0.00010958,2]
[323436602,1713985839657,-500.0,0.00010958,2]
[323436603,1713985839666,-500.0,0.00010958,2]
[323436604,1713985839676,-500.0,0.00010958,2]
[323436605,1713985839688,-504.78447206,0.00010958,2]
[323436606,1713985839698,-283.96655707,0.00010958,2]
[323436607,1713985839711,-643.88,0.00010958,2]
[323436608,1713985839720,-500.0,0.00010958,2]
[323436609,1713985839730,-500.0,0.00010958,2]
[323436610,1713985839739,-500.0,0.00010958,2]
[323436611,1713985839748,-500.0,0.00010958,2]
[323436612,1713985839758,-500.0,0.00010958,2]
[323436613,1713985839767,-500.0,0.00010958,2]
[323436614,1713985839777,-503.79223393,0.00010958,2]
[323436615,1713985839787,-500.0,0.00010958,2]
[323436616,1713985839797,-500.0,0.00010958,2]
[323436617,1713985839806,-1000.0,0.00010958,2]
[323436618,1713985839816,-1439.93,0.00010958,2]
[323436619,1713985839827,-2507.88,0.00010958,2]
[323436620,1713985839836,-500.0,0.00010958,2]
[323436621,1713985839847,-500.0,0.00010958,2]
[323436622,1713985839857,-500.0,0.00010958,2]
[323436623,1713985839867,-500.0,0.00010958,2]
[323436624,1713985839877,-500.0,0.00010958,2]
[323436625,1713985839886,-500.0,0.00010958,2]
[323436626,1713985839896,-500.0,0.00010958,2]
[323436627,1713985839906,-500.0,0.00010958,2]
[323436628,1713985839916,-1683.64,0.00010958,2]
[323436629,1713985839926,-500.0,0.00010958,2]
[323436630,1713985839937,-500.0,0.00010958,2]
[323436631,1713985839947,-500.0,0.00010958,2]
[323436632,1713985839959,-501.39090067,0.00010958,2]
[323436633,1713985839970,-500.0,0.00010958,2]
[323436635,1713985839980,-500.0,0.00010958,2]
[323436636,1713985839990,-1455.49,0.00010958,2]
[323436637,1713985840000,-2687.39,0.00010958,2]
[323436638,1713985840009,-500.0,0.00010958,2]
[323436639,1713985840019,-500.73427779,0.00010958,2]
[323436641,1713985840030,-500.0,0.00010958,2]
[323436643,1713985840040,-500.0,0.00010958,2]
[323436644,1713985840050,-500.0,0.00010958,2]
[323436645,1713985840059,-500.0,0.00010958,2]
[323436646,1713985840069,-500.0,0.00010958,2]
[323436647,1713985840079,-501.66158164,0.00010958,2]
[323436650,1713985840089,-500.0,0.00010958,2]
[323436651,1713985840099,-1153.04,0.00010958,2]
[323436653,1713985840110,-500.26137584,0.00010958,2]
[323436654,1713985840120,-156.34497371,0.00010958,2]
[323436658,1713985840362,-500.0,0.00010958,2]
[323436659,1713985840371,-500.0,0.00010958,2]
[323436660,1713985840381,-500.0,0.00010958,2]
[323436661,1713985840390,-3440.4,0.00010958,2]
[323436662,1713985840400,-500.0,0.00010958,2]
[323436663,1713985840409,-500.0,0.00010958,2]
[323436664,1713985840418,-500.0,0.00010958,2]
[323436665,1713985840428,-2692.64,0.00010958,2]
[323436666,1713985840438,-501.16392127,0.00010958,2]
[323436667,1713985840448,-500.0,0.00010958,2]
[323436668,1713985840458,-657.0,0.00010958,2]
[323436669,1713985840467,-908.07,0.00010958,2]
[323436670,1713985840477,-4615.67,0.00010958,2]
[323436671,1713985840486,-501.36852304,0.00010958,2]
[323436672,1713985840495,-500.0,0.00010958,2]
[323436673,1713985840505,-500.44201957,0.00010958,2]
[323436674,1713985840515,-500.0,0.00010958,2]
[323436675,1713985840524,-500.0,0.00010958,2]
[323436676,1713985840534,-500.0,0.00010958,2]
[323436677,1713985840544,-500.0,0.00010958,2]
[323436678,1713985840553,-1922.4,0.00010958,2]
[323436679,1713985840563,-500.0,0.00010958,2]
[323436680,1713985840572,-500.0,0.00010958,2]
[323436681,1713985840581,-500.0,0.00010958,2]
[323436682,1713985840591,-1089.6,0.00010958,2]
[323436683,1713985840609,-500.0,0.00010958,2]
[323436684,1713985840619,-500.0,0.00010958,2]
[323436685,1713985840628,-500.0,0.00010958,2]
[323436686,1713985840637,-500.0,0.00010958,2]
[323436687,1713985840647,-500.0,0.00010958,2]
[323436688,1713985840656,-502.21143931,0.00010958,2]
[323436689,1713985840666,-500.0,0.00010958,2]
[323436690,1713985840675,-500.0,0.00010958,2]
[323436691,1713985840685,-500.0,0.00010958,2]
[323436692,1713985840694,-500.0,0.00010958,2]
[323436693,1713985840703,-500.0,0.00010958,2]
[323436695,1713985840714,-517.75,0.00010958,2]
[323436697,1713985840723,-1871.19,0.00010958,2]
[323436698,1713985840732,-1119.98,0.00010958,2]
[323436699,1713985840742,-500.0,0.00010958,2]
[323436700,1713985840751,-500.0,0.00010958,2]
[323436701,1713985840760,-500.0,0.00010958,2]
[323436702,1713985840770,-500.0,0.00010958,2]
[323436703,1713985840779,-500.44495788,0.00010958,2]
[323436704,1713985840789,-616.24,0.00010958,2]
[323436705,1713985840798,-500.0,0.00010958,2]
[323436706,1713985840807,-648.4697,0.00010958,2]
[323436707,1713985840817,-500.0,0.00010958,2]
[323436708,1713985840826,-500.0,0.00010958,2]
[323436709,1713985840836,-500.21548881,0.00010958,2]
[323436710,1713985840845,-554.08,0.00010958,2]
[323436711,1713985840854,-500.0,0.00010958,2]
[323436712,1713985840864,-2649.41,0.00010958,2]
[323436713,1713985840874,-500.0,0.00010958,2]
[323436714,1713985840883,-500.0,0.00010958,2]
[323436715,1713985840893,-500.0,0.00010958,2]
[323436716,1713985840902,-500.0,0.00010958,2]
[323436717,1713985840911,-501.50594883,0.00010958,2]
[323436718,1713985840921,-500.0,0.00010958,2]
[323436719,1713985840930,-500.0,0.00010958,2]
[323436720,1713985840939,-500.0,0.00010958,2]
[323436721,1713985840949,-500.0,0.00010958,2]
[323436722,1713985840961,-501.80297236,0.00010958,2]
[323436723,1713985840972,-799.08,0.00010958,2]
[323436724,1713985840981,-714.97,0.00010958,2]
[323436725,1713985840991,-500.0,0.00010958,2]
[323436726,1713985841000,-500.0,0.00010958,2]
[323436727,1713985841010,-938.42,0.00010958,2]
[323436728,1713985841019,-500.0,0.00010958,2]
[323436729,1713985841029,-881.67,0.00010958,2]
[323436730,1713985841038,-186.36131396,0.00010958,2]
[323436731,1713985841048,-500.0,0.00010958,2]
[323436732,1713985841057,-500.0,0.00010958,2]
[323436733,1713985841067,-500.0,0.00010958,2]
[323436734,1713985841076,-500.0,0.00010958,2]
[323436735,1713985841086,-500.0,0.00010958,2]
[323436736,1713985841095,-500.0,0.00010958,2]
[323436737,1713985841105,-502.79267952,0.00010958,2]
[323436738,1713985841116,-500.0,0.00010958,2]
[323436739,1713985841125,-1035.13,0.00010958,2]
[323436740,1713985841135,-632.05,0.00010958,2]
[323436741,1713985841145,-500.0,0.00010958,2]
[323436742,1713985841154,-501.45294476,0.00010958,2]
[323436743,1713985841163,-500.0,0.00010958,2]
[323436744,1713985841173,-500.0,0.00010958,2]
[323436745,1713985841182,-500.0,0.00010958,2]
[323436746,1713985841191,-500.0,0.00010958,2]
[323436747,1713985841200,-500.98604982,0.00010958,2]
[323436748,1713985841210,-500.0,0.00010958,2]
[323436749,1713985841219,-887.39,0.00010958,2]
[323436750,1713985841228,-1357.17,0.00010958,2]
[323436751,1713985841237,-500.0,0.00010958,2]
[323436752,1713985841246,-500.0,0.00010958,2]
[323436753,1713985841258,-500.0,0.00010958,2]
[323436754,1713985841267,-500.0,0.00010958,2]
[323436755,1713985841276,-500.0,0.00010958,2]
[323436756,1713985841285,-551.7,0.00010958,2]
[323436757,1713985841294,-500.0,0.00010958,2]
[323436758,1713985841304,-534.36,0.00010958,2]